bitfinex/quotes_ETHUSD_20251021
["timestamp","ask_amount","ask_price","bid_price","bid_amount"]
[1761077996829,4.092,3964.4,3963.9,2.52272467]
[1761077997160,0.52976346,3964.3,3963.9,2.52272467]
[1761077997469,0.52976346,3964.3,3963.9,2.52274937]
[1761077997673,4.077,3964.2,3963.9,2.52276176]
[1761077997875,4.077,3964.2,3963.6,0.002]
[1761077997876,4.077,3964.2,3964.0,2.52265374]
[1761077998063,4.077,3964.1,3963.7,2.52283284]
[1761077998377,2.52233361,3964.6,3963.6,0.002]
[1761077998378,4.60759718,3964.0,3963.6,0.002]
[1761077998547,4.60759718,3963.9,3963.6,0.002]
[1761077998742,0.53059718,3963.8,3963.6,0.002]
[1761077999268,4.077,3963.9,3963.6,0.002]
[1761077999644,4.077,3963.9,3963.6,2.52494786]
[1761078000050,4.071,3963.8,3963.6,0.002]
[1761078000265,4.062,3963.9,3963.7,2.52288494]
[1761078000470,4.061,3963.8,3963.7,2.52289527]
[1761078001474,0.7740267,3964.7,3964.1,2.52263527]
[1761078001678,0.7740267,3964.7,3963.7,0.227]
[1761078001679,4.58361302,3964.6,3963.8,2.52279444]
[1761078001854,4.58361302,3964.6,3963.7,0.227]
[1761078001855,0.53061302,3964.5,3963.7,2.52287186]
[1761078002187,4.053,3964.4,3963.9,2.52275342]
[1761078002348,0.53061302,3964.3,3963.9,2.52275342]
[1761078002548,0.53061302,3964.3,3963.6,0.002]
[1761078002852,0.53061302,3964.3,3963.9,2.52272762]
[1761078003268,0.53061302,3964.3,3963.6,0.002]
[1761078003468,3.39862239,3965.1,3964.3,2.52250851]
[1761078003469,0.1148,3965.0,3964.3,2.52250851]
[1761078003668,0.1148,3965.0,3964.1,2.52263417]
[1761078003669,4.042,3964.9,3964.1,2.52263417]
[1761078003875,4.042,3964.9,3964.4,2.52244785]
[1761078004192,10.498384,3964.7,3963.6,0.002]
[1761078004512,7.37143527,3963.7,3963.6,0.002]
[1761078004798,24.10612016,3963.7,3963.6,0.002]
[1761078005004,22.24159816,3963.7,3963.6,0.002]
[1761078005217,8.64339716,3963.7,3963.6,0.002]
[1761078005399,9.15027716,3963.7,3963.6,0.002]
[1761078005572,9.14827716,3963.7,3963.6,0.002]
[1761078005900,8.64139716,3963.7,3963.6,0.002]
[1761078006110,10.99355516,3963.7,3963.6,0.002]
[1761078006467,7.41361116,3963.7,3963.6,0.002]
[1761078006673,9.14027716,3963.7,3963.6,0.002]
[1761078006900,0.53030189,3963.7,3963.6,0.002]
[1761078007068,1.5552,3964.4,3963.6,0.002]
[1761078007269,0.6623291,3964.5,3963.6,0.002]
[1761078007270,8.508403,3963.9,3963.6,0.002]
[1761078007476,4.07809527,3963.7,3963.6,0.002]
[1761078007708,10.34881146,3963.7,3963.6,0.002]
[1761078007891,10.34881146,3963.7,3961.2,2.98357713]
[1761078007892,3.14641,3963.5,3961.4,2.5243111]
[1761078008202,2.52347397,3962.8,3961.8,2.52408419]
[1761078008506,2.52347397,3962.8,3961.5,0.002]
[1761078008507,2.52389238,3962.2,3961.5,0.002]
[1761078008723,7.25384,3961.8,3961.5,0.002]
[1761078009009,0.2144,3962.0,3961.5,0.002]
[1761078009488,4.017,3961.9,3961.5,0.002]
[1761078009688,4.017,3961.8,3961.5,2.52628725]
[1761078009894,4.017,3961.7,3961.5,0.002]
[1761078010105,4.015,3961.6,3961.5,0.002]
[1761078010715,6.53923263,3961.6,3961.5,0.002]
[1761078011304,4.015,3961.6,3961.5,0.002]
[1761078011519,6.53923263,3961.6,3961.5,0.002]
[1761078011901,2.52405233,3961.9,3961.5,0.002]
[1761078012217,2.52417065,3961.7,3961.5,0.002]
[1761078012399,2.52416938,3961.7,3961.5,0.002]
[1761078012632,4.003,3961.8,3961.5,0.002]
[1761078013720,2.52417658,3961.7,3961.5,0.002]
[1761078014045,4.001,3961.6,3961.5,0.002]
[1761078014536,3.992,3961.6,3961.5,0.002]
[1761078014946,2.52391043,3962.2,3961.5,0.002]
[1761078015144,6.50993134,3962.1,3961.5,0.002]
[1761078015444,6.50992782,3962.1,3961.5,0.002]
[1761078015853,2.52412438,3961.8,3961.5,0.002]
[1761078016162,3.986,3962.1,3961.5,0.002]
[1761078016163,2.5241707,3961.7,3961.5,0.002]
[1761078016347,6.61633263,3961.6,3961.5,0.002]
[1761078016509,31.36250018,3961.6,3961.5,0.002]
[1761078016711,33.79732749,3961.6,3961.5,0.0001]
[1761078016930,1.5552,3960.7,3958.5,0.4591]
[1761078017132,1.5552,3960.5,3958.9,2.52593097]
[1761078017432,0.1148,3960.8,3958.9,2.52590924]
[1761078017433,2.52523931,3960.1,3958.9,2.52590924]
[1761078017628,2.52523931,3960.1,3958.5,0.4591]
[1761078017834,2.52527051,3960.0,3958.8,2.52597042]
[1761078018021,0.50688,3960.6,3958.5,0.4591]
[1761078018244,2.52506123,3960.3,3959.1,2.52581658]
[1761078018427,0.1072,3960.6,3958.7,0.02526081]
[1761078018631,0.1072,3960.6,3958.6,0.4591]
[1761078018632,3.968,3960.5,3959.6,2.52545893]
[1761078018939,2.5250548,3960.4,3958.8,2.52600618]
[1761078019140,2.52506656,3960.3,3958.9,0.4587]
[1761078019345,6.49306656,3960.3,3959.4,2.52558609]
[1761078019654,3.968,3960.3,3959.6,2.52548641]
[1761078019842,3.968,3960.3,3959.4,2.52557956]
[1761078020287,0.1072,3960.2,3958.3,0.227]
[1761078020439,0.1072,3961.8,3959.2,19.63763055]
[1761078020780,0.695,3961.5,3960.6,2.52486609]
[1761078021080,3.96,3961.4,3960.6,2.52486996]
[1761078021298,3.96,3961.4,3960.6,2.52481409]
[1761078021578,3.96,3961.4,3960.7,2.52479077]
[1761078022065,3.96,3961.4,3959.9,2.52530857]
[1761078022066,0.123,3960.8,3959.9,2.52530857]
[1761078022378,3.968,3960.7,3959.8,2.52538006]
[1761078022585,3.968,3960.7,3959.7,0.2207]
[1761078022586,3.968,3960.7,3959.7,2.74608699]
[1761078022877,4.067,3960.7,3959.4,0.2207]
[1761078023382,4.067,3960.7,3958.3,0.227]
[1761078023383,0.50688,3960.5,3958.3,0.227]
[1761078023538,2.52543934,3959.8,3958.7,2.52607283]
[1761078023736,3.010724,3960.4,3958.4,0.4587]
[1761078023737,3.958,3959.7,3958.4,0.4587]
[1761078024047,3.958,3959.6,3959.1,2.52582129]
[1761078024250,3.957,3959.5,3959.2,0.02525762]
[1761078024447,4.07991489,3960.9,3958.3,0.227]
[1761078024448,3.957,3959.4,3959.0,0.2297]
[1761078024770,3.957,3959.3,3959.2,2.52575116]
[1761078025539,3.957,3959.3,3959.0,0.2297]
[1761078025739,3.957,3959.3,3959.2,2.52576278]
[1761078026839,3.957,3959.3,3959.1,2.52581353]
[1761078027041,3.957,3959.3,3959.2,2.52576278]
[1761078027782,3.957,3959.3,3958.3,0.227]
[1761078027962,3.957,3959.3,3959.0,2.52586729]
[1761078028163,3.957,3959.3,3958.0,0.4735]
[1761078028369,3.957,3959.3,3958.6,2.52609172]
[1761078028691,3.957,3959.3,3958.7,2.52603243]
[1761078028986,3.957,3959.3,3958.6,2.52613231]
[1761078029192,3.957,3959.3,3958.5,2.5261967]
[1761078029372,3.957,3959.3,3958.4,2.52625724]
[1761078029694,3.957,3959.3,3958.1,0.4735]
[1761078029864,3.957,3959.3,3958.6,2.52609658]
[1761078030058,2.52576278,3959.2,3958.1,0.4735]
[1761078030283,0.0999,3959.2,3957.9,0.2297]
[1761078030598,3.957,3959.3,3958.4,2.52621398]
[1761078030772,3.957,3959.3,3958.5,2.52618666]
[1761078031085,3.957,3959.3,3958.0,0.4735]
[1761078031294,0.1895,3959.9,3959.2,0.2297]
[1761078031492,3.696,3959.8,3959.7,2.52544384]
[1761078031713,3.7,3959.8,3959.4,0.4735]
[1761078031866,3.7,3959.8,3959.4,2.52558231]
[1761078032205,0.001,3960.7,3959.5,0.49875571]
[1761078032374,0.001,3960.7,3960.6,2.75456996]
[1761078032557,3.914,3960.7,3960.6,2.75456996]
[1761078032759,3.913,3960.7,3960.6,2.75456996]
[1761078032974,3.913,3960.7,3959.5,0.4735]
[1761078033211,3.913,3960.7,3960.0,2.52518886]
[1761078033364,3.909,3960.6,3960.1,0.2297]
[1761078033559,0.001,3960.7,3960.4,2.52494516]
[1761078033764,0.001,3961.1,3961.0,2.52461499]
[1761078033960,0.001,3961.1,3961.0,2.99811499]
[1761078034198,0.001,3961.1,3961.0,2.52461499]
[1761078034367,0.001,3961.1,3960.8,2.52469023]
[1761078034557,0.001,3961.1,3960.4,2.0287]
[1761078034558,3.921,3961.0,3960.4,0.4735]
[1761078034769,0.001,3961.1,3961.0,2.52461499]
[1761078035401,0.001,3961.1,3961.0,2.99811499]
[1761078036191,0.001,3961.1,3961.0,2.52461499]
[1761078036577,0.001,3961.1,3961.0,2.01180257]
[1761078036777,0.001,3961.1,3960.4,0.4735]
[1761078037093,0.001,3961.1,3961.0,2.52461499]
[1761078037608,0.001,3961.1,3960.4,0.4735]
[1761078037813,0.001,3961.1,3960.9,2.52462863]
[1761078038093,0.001,3961.1,3960.4,0.4735]
[1761078038783,0.001,3961.1,3961.0,2.52461499]
[1761078039364,0.001,3961.1,3960.1,0.2297]
[1761078039692,3.904,3961.0,3960.6,2.52480989]
[1761078039906,3.904,3961.0,3960.1,2.75483178]
[1761078040206,3.896,3960.9,3960.2,2.52512499]
[1761078040409,3.894,3960.8,3960.5,2.52492055]
[1761078040617,3.894,3960.8,3959.6,0.4735]
[1761078040781,3.894,3960.8,3960.1,2.5251334]
[1761078041300,3.894,3960.8,3960.1,2.52513068]
[1761078041499,3.894,3960.8,3960.2,2.52509442]
[1761078041906,6.41874653,3960.8,3959.2,0.2297]
[1761078042090,6.41874653,3960.8,3960.0,2.52523492]
[1761078042091,0.099,3960.7,3960.0,2.52523492]
[1761078042410,0.099,3960.7,3959.2,0.2297]
[1761078042737,3.885,3960.6,3959.7,2.52538912]
[1761078043011,3.885,3960.6,3959.1,2.52580724]
[1761078043012,2.52525696,3960.0,3959.1,2.52580724]
[1761078043313,8.81349449,3960.3,3959.2,2.52570644]
[1761078043314,2.52523362,3960.1,3959.2,2.52570644]
[1761078043608,2.52523362,3960.1,3958.5,2.9997079]
[1761078043609,2.52534255,3959.9,3959.1,2.52581465]
[1761078043915,0.1395,3960.0,3958.5,0.4735]
[1761078044113,2.66475801,3960.0,3958.5,0.4735]
[1761078044414,2.66475801,3960.0,3959.1,2.52576846]
[1761078044582,2.5253195,3959.9,3959.1,2.52576846]
[1761078044782,3.873,3959.8,3959.1,2.52576846]
[1761078044979,3.873,3959.8,3959.3,2.52563572]
[1761078045183,3.873,3959.8,3959.0,2.52586411]
[1761078045184,3.873,3959.8,3959.1,2.52582657]
[1761078045412,3.873,3959.8,3958.5,0.4735]
[1761078045614,3.873,3959.8,3959.1,2.52582036]
[1761078045795,3.873,3959.8,3959.2,2.52575325]
[1761078045988,3.873,3959.8,3958.7,2.52602192]
[1761078046191,3.873,3959.8,3958.3,0.002]
[1761078046192,0.50688,3959.5,3958.3,0.002]
[1761078046424,2.52569841,3959.4,3958.3,0.002]
[1761078046622,2.52569898,3959.3,3958.3,2.5283281]
[1761078046939,2.62469898,3959.3,3958.3,2.5283281]
[1761078047097,2.52577327,3959.2,3958.3,2.5283281]
[1761078047293,0.50688,3959.2,3958.4,2.52625654]
[1761078047494,0.50688,3959.2,3958.3,0.002]
[1761078047726,3.956,3959.1,3958.3,0.002]
[1761078047913,3.956,3959.1,3958.4,2.52622407]
[1761078048100,0.099,3959.1,3958.4,2.52622407]
[1761078048418,3.857,3959.0,3958.3,0.002]
[1761078048612,6.3828926,3959.0,3958.3,2.52833465]
[1761078048832,3.857,3959.0,3958.3,2.52833465]
[1761078049015,3.851,3958.9,3958.6,2.5261358]
[1761078049634,0.099,3959.1,3958.3,0.002]
[1761078049635,0.099,3959.5,3958.8,2.52601082]
[1761078049926,2.52539778,3959.8,3958.3,0.002]
[1761078049927,3.847,3959.4,3958.4,2.52627324]
[1761078050093,3.847,3959.4,3959.2,2.52575507]
[1761078050300,0.1395,3960.0,3958.6,0.02526145]
[1761078050501,0.1395,3960.0,3959.6,2.52546408]
[1761078050849,0.1391,3960.3,3959.1,2.52577963]
[1761078051138,3.841,3960.2,3959.6,2.52546456]
[1761078051433,3.84,3960.1,3959.6,2.52546456]
[1761078051633,3.84,3960.1,3959.0,0.2297]
[1761078051834,2.52555713,3959.6,3958.1,2.99993995]
[1761078052035,2.52552229,3959.6,3958.8,2.5259626]
[1761078052202,0.50688,3959.9,3959.1,2.52581634]
[1761078052630,2.52538605,3959.8,3959.1,2.52581634]
[1761078052836,2.52544855,3959.7,3959.0,2.52587935]
[1761078053135,3.03224479,3959.9,3959.1,2.52582518]
[1761078053333,2.52538353,3959.8,3958.4,0.002]
[1761078053540,0.50688,3959.7,3958.5,2.52620942]
[1761078053722,2.52570334,3959.3,3958.4,0.002]
[1761078053927,3.829,3959.2,3958.5,2.52616043]
[1761078054138,0.50688,3959.8,3958.4,0.4614]
[1761078054344,2.66417735,3960.3,3958.8,2.5259695]
[1761078054651,2.66417735,3960.3,3958.6,2.52612014]
[1761078054652,0.1391,3960.3,3958.9,0.02525954]
[1761078054820,2.908,3960.2,3959.0,3.20959037]
[1761078055022,3.823,3960.1,3959.5,2.52556822]
[1761078055211,3.823,3960.1,3959.0,3.20959037]
[1761078055409,3.822,3960.0,3959.6,2.52545045]
[1761078055644,3.822,3960.0,3959.4,2.52557589]
[1761078055843,3.822,3960.0,3959.0,2.7501679]
[1761078056144,3.822,3960.0,3959.4,2.52558233]
[1761078056361,3.822,3960.0,3959.0,0.2243]
[1761078056574,3.819,3959.9,3959.4,2.52560611]
[1761078057072,3.819,3959.9,3959.7,2.52543891]
[1761078057223,0.1391,3960.3,3959.7,2.52538036]
[1761078057422,3.811,3960.2,3959.8,2.52533007]
[1761078057862,3.811,3960.2,3959.9,2.52529661]
[1761078058173,0.099,3961.4,3960.1,0.2243]
[1761078058327,3.809,3961.0,3960.2,2.52508311]
[1761078058526,3.809,3961.0,3960.4,2.52499678]
[1761078058966,3.809,3961.0,3960.3,2.52504834]
[1761078059254,3.809,3961.0,3960.1,0.2243]
[1761078059455,2.52470849,3960.9,3959.7,0.4594]
[1761078059636,2.52470849,3960.9,3960.1,2.52515018]
[1761078060024,2.52555356,3961.1,3959.7,2.98483244]
[1761078060221,2.52555356,3961.1,3960.0,2.52523891]
[1761078060222,2.52478786,3960.8,3960.0,2.52523891]
[1761078060425,3.797,3960.7,3960.1,2.52518707]
[1761078060658,3.797,3960.7,3959.7,0.4594]
[1761078060659,3.797,3960.7,3960.2,2.5251184]
[1761078060843,2.5249133,3960.6,3959.8,2.52538006]
[1761078061046,0.001,3961.1,3960.8,2.52473339]
[1761078061225,0.001,3961.1,3960.6,0.2243]
[1761078061426,0.001,3961.1,3960.9,2.52466952]
[1761078061663,3.795,3961.0,3960.9,2.52466952]
[1761078062325,3.795,3961.0,3960.2,0.2243]
[1761078062524,3.795,3961.0,3958.8,3.794]
[1761078062525,2.52474938,3960.8,3959.9,0.2243]
[1761078062736,2.64807921,3960.9,3960.2,2.52507374]
[1761078062934,2.52478952,3960.8,3959.9,0.2243]
[1761078063237,0.001,3961.1,3960.0,0.02525252]
[1761078063441,3.789,3961.0,3960.6,2.52481812]
[1761078063628,0.001,3961.1,3960.1,0.2243]
[1761078063629,3.787,3960.9,3960.8,2.52474247]
[1761078063960,0.001,3961.1,3961.0,2.52461499]
[1761078064164,0.001,3961.1,3961.0,2.98401499]
[1761078064928,0.001,3961.1,3961.0,3.00926113]
[1761078065161,0.001,3961.5,3961.0,3.00926113]
[1761078065162,0.001,3961.5,3961.4,2.52436007]
[1761078065365,0.1395,3963.6,3962.9,2.52337798]
[1761078065667,0.1237,3964.3,3961.7,1.4]
[1761078065668,3.782,3963.5,3961.7,1.4]
[1761078065828,3.782,3963.5,3961.8,0.4594]
[1761078066164,3.781,3963.4,3962.9,2.52338457]
[1761078066863,0.1424,3963.5,3962.1,0.4594]
[1761078067029,2.66543707,3963.5,3962.4,2.52371929]
[1761078067226,0.1424,3963.5,3962.1,0.4594]
[1761078067432,0.1424,3963.5,3963.0,2.52333035]
[1761078067627,3.778,3963.6,3962.2,0.0252385]
[1761078067861,0.001,3963.7,3962.3,0.4594]
[1761078068236,0.001,3963.7,3963.5,2.52300781]
[1761078068445,1.247,3963.6,3963.4,2.74737998]
[1761078068953,3.771,3963.6,3963.5,2.5229946]
[1761078069156,3.771,3963.6,3963.3,2.52313472]
[1761078069469,0.001,3963.7,3963.5,2.52302258]
[1761078069637,0.001,3963.7,3963.6,2.52295892]
[1761078069831,0.001,3963.7,3963.6,2.98235892]
[1761078072651,0.001,3963.7,3963.6,2.52295892]
[1761078073240,0.001,3963.7,3963.1,2.0837]
[1761078073563,0.001,3963.7,3962.9,2.52340457]
[1761078073865,0.001,3963.7,3963.2,2.52321184]
[1761078074031,0.001,3963.7,3963.0,0.4594]
[1761078074238,0.001,3963.7,3963.6,2.52295892]
[1761078074860,0.001,3963.7,3963.6,2.98235892]
[1761078076242,0.001,3963.7,3963.6,4.38235892]
[1761078077853,0.001,3963.7,3963.6,5.93755892]
[1761078079181,0.001,3964.5,3964.3,2.52251343]
[1761078079393,0.001,3964.5,3964.3,6.25151343]
[1761078079563,0.001,3964.5,3964.3,2.95801343]
[1761078079961,0.001,3964.5,3964.3,4.35801343]
[1761078080163,0.001,3964.5,3964.3,2.52251343]
[1761078080369,0.001,3964.5,3964.3,2.95801343]
[1761078080755,0.001,3964.5,3964.3,4.35801343]
[1761078081267,0.001,3964.5,3964.3,4.38323856]
[1761078081467,0.001,3964.5,3964.3,2.52251343]
[1761078081879,0.001,3964.5,3964.3,2.95801343]
[1761078082089,0.001,3964.5,3964.3,4.35801343]
[1761078082389,0.001,3964.5,3964.3,2.52251343]
[1761078084988,0.001,3964.5,3964.3,2.97901343]
[1761078085772,0.001,3964.5,3964.3,2.52251343]
[1761078087299,0.1018,3964.4,3964.1,2.52260031]
[1761078087482,0.001,3964.4,3964.1,2.52260031]
[1761078087891,0.001,3964.4,3964.2,2.52255995]
[1761078088100,0.1018,3964.4,3963.8,2.52278473]
[1761078088402,0.1018,3964.4,3964.1,2.52463896]
[1761078088596,0.001,3964.4,3964.1,0.002]
[1761078088796,0.001,3964.4,3964.1,2.52459321]
[1761078089122,3.722,3964.3,3964.1,0.002]
[1761078089417,19.38027906,3964.2,3964.1,0.002]
[1761078089570,0.50688,3963.3,3961.9,2.52403573]
[1761078089786,6.24522651,3963.2,3962.1,2.52388566]
[1761078090003,6.24522651,3963.2,3962.0,2.52391781]
[1761078090223,0.099,3963.1,3961.4,0.4565]
[1761078090505,0.099,3963.1,3961.3,2.74871223]
[1761078090685,3.722,3963.0,3961.5,0.4565]
[1761078090886,3.722,3963.0,3962.7,2.52351665]
[1761078091116,3.722,3963.0,3962.0,2.52397778]
[1761078091316,3.722,3963.0,3962.4,2.52369295]
[1761078091477,3.722,3963.0,3961.6,2.52423263]
[1761078091930,3.722,3963.0,3962.7,2.52351922]
[1761078092495,0.1001,3962.9,3962.0,2.52397467]
[1761078092702,0.1001,3962.9,3961.3,2.236]
[1761078092897,0.1001,3962.9,3962.4,2.52367009]
[1761078093101,3.722,3963.0,3961.5,2.52429635]
[1761078093411,0.1312,3963.4,3962.2,2.52379969]
[1761078093611,0.1312,3963.4,3963.2,2.52320098]
[1761078093840,0.1312,3963.4,3963.3,2.5231499]
[1761078094426,3.722,3963.6,3962.6,0.02523595]
[1761078094611,3.722,3963.5,3963.3,2.52312645]
[1761078094818,3.722,3963.5,3963.3,2.52311149]
[1761078095018,3.722,3963.5,3962.4,0.4565]
[1761078095019,3.722,3963.5,3963.2,2.52319412]
[1761078095233,3.722,3963.5,3962.4,0.4565]
[1761078095234,3.722,3963.5,3963.3,2.52312678]
[1761078095839,3.722,3963.5,3962.9,2.52334461]
[1761078095840,2.623497,3963.4,3961.6,0.4565]
[1761078096131,2.623497,3963.4,3962.7,2.52351817]
[1761078096132,0.1004,3963.4,3962.7,2.52351817]
[1761078096301,1.5552,3963.3,3962.1,0.2288]
[1761078096510,1.5552,3963.3,3962.4,2.52371542]
[1761078096844,2.52315128,3963.3,3962.5,2.52362348]
[1761078097020,1.6556,3963.4,3962.4,2.52370637]
[1761078097021,2.52324601,3963.2,3962.4,2.52370637]
[1761078097206,2.62364601,3963.2,3962.4,2.52370637]
[1761078097402,0.1004,3963.2,3962.1,0.2288]
[1761078097608,0.1004,3963.2,3962.5,2.52364555]
[1761078098233,0.1004,3963.2,3962.6,2.52358507]
[1761078098420,2.62361904,3963.2,3962.2,2.52384696]
[1761078098926,3.722,3963.1,3962.2,2.52384696]
[1761078099109,6.34572249,3963.1,3962.3,2.52378668]
[1761078099512,2.52370971,3962.5,3961.7,2.52411043]
[1761078099839,2.52370971,3962.5,3961.3,0.2243]
[1761078099840,3.721,3962.4,3961.9,2.52402609]
[1761078100012,3.721,3962.4,3961.8,2.52410289]
[1761078100437,1.5552,3963.1,3962.4,2.52367173]
[1761078100614,3.721,3963.0,3962.7,2.52348338]
[1761078100944,0.1308,3963.7,3962.6,2.52359561]
[1761078101112,0.1308,3963.7,3962.3,0.2288]
[1761078101113,3.721,3963.6,3962.3,0.2288]
[1761078101439,3.721,3963.5,3963.4,2.52308623]
[1761078102329,0.1323,3963.9,3962.3,2.7525332]
[1761078102330,0.2313,3963.9,3962.3,0.2288]
[1761078102638,3.721,3963.5,3962.4,0.48173722]
[1761078102940,0.001,3964.4,3963.6,2.52295892]
[1761078102941,3.721,3963.7,3963.6,2.52295892]
[1761078103343,0.001,3964.4,3963.3,0.2288]
[1761078103639,2.636,3963.8,3963.7,2.52289527]
[1761078105250,0.001,3964.4,3963.7,2.52289527]
[1761078105540,0.001,3964.4,3963.3,0.2288]
[1761078105841,3.721,3964.4,3964.3,2.52251343]
[1761078106046,0.001,3964.4,3964.3,3.20781343]
[1761078106637,0.001,3964.4,3964.3,2.52251343]
[1761078107355,0.001,3964.4,3963.2,1.5552]
[1761078107659,0.001,3964.4,3964.3,2.52251343]
[1761078108157,0.001,3964.4,3964.2,2.52257332]
[1761078108532,0.001,3964.4,3964.3,2.52251343]
[1761078109045,0.001,3964.4,3963.7,0.4565]
[1761078109248,0.001,3964.4,3964.3,2.52251343]
[1761078111951,0.001,3964.4,3963.6,2.52295316]
[1761078111952,0.001,3964.4,3963.5,2.52302258]
[1761078112158,0.001,3964.4,3964.3,2.52251343]
[1761078112549,0.001,3964.4,3964.3,2.97901343]
[1761078114459,0.53,3966.1,3965.1,2.52200448]
[1761078114640,0.53,3966.1,3965.1,2.75510448]
[1761078114835,1.113,3966.3,3965.1,3.22322452]
[1761078115363,0.001,3966.4,3965.1,3.22322452]
[1761078115881,0.001,3966.4,3965.1,8.46920448]
[1761078116086,1e-08,3965.8,3965.7,2.52162291]
[1761078116380,1e-08,3965.8,3965.7,6.68052291]
[1761078116734,1e-08,3965.8,3965.7,8.23572291]
[1761078117793,1e-08,3965.8,3965.7,13.77249191]
[1761078117944,0.001,3966.4,3966.3,23.19094629]
[1761078118135,0.001,3966.4,3966.3,27.34884629]
[1761078119235,0.001,3966.4,3966.3,8.23434145]
[1761078119766,0.001,3966.4,3966.3,7.79144145]
[1761078120068,0.001,3966.4,3966.3,8.23434145]
[1761078121136,0.001,3966.4,3966.3,7.79144145]
[1761078121338,0.001,3966.4,3966.3,8.23434145]
[1761078123943,0.2108,3969.1,3966.7,19.11450484]
[1761078124150,0.1008,3969.0,3966.9,1.5552]
[1761078124444,0.1008,3969.0,3966.8,3.711]
[1761078124445,0.001,3967.2,3967.1,2.52073302]
[1761078124644,0.001,3967.2,3965.2,0.4429]
[1761078124841,0.001,3967.2,3965.9,19.57371772]
[1761078125045,0.001,3967.2,3967.1,2.52073302]
[1761078125350,0.001,3967.2,3967.1,22.32755074]
[1761078125565,0.001,3967.2,3967.1,22.77045074]
[1761078127417,0.001,3967.2,3967.1,22.09445074]
[1761078127566,0.001,3967.2,3967.1,22.53735074]
[1761078127770,0.001,3967.2,3967.1,22.09445074]
[1761078128887,0.001,3967.2,3967.1,22.53735074]
[1761078129630,0.001,3967.2,3967.1,2.52073302]
[1761078130116,0.1009,3967.2,3965.6,19.57371772]
[1761078130289,0.1597,3967.1,3966.6,2.52099612]
[1761078130490,0.1597,3967.1,3965.8,3.708]
[1761078130692,0.099,3967.0,3965.8,3.708]
[1761078130890,0.099,3967.0,3965.8,2.52155933]
[1761078130891,0.2097,3965.9,3965.8,2.52155933]
[1761078131097,0.099,3966.9,3966.6,2.52104444]
[1761078131291,0.099,3966.9,3966.7,2.52098331]
[1761078131505,0.099,3966.9,3966.2,2.52124546]
[1761078131717,0.099,3966.9,3962.2,3.43482119]
[1761078131718,2.52092427,3966.8,3965.4,3.707]
[1761078131896,0.099,3966.9,3965.3,2.52182871]
[1761078132083,0.099,3966.9,3965.1,3.9401]
[1761078132084,0.099,3966.9,3966.8,2.52092366]
[1761078132285,0.1633,3967.0,3966.8,2.5209115]
[1761078132484,0.1633,3967.0,3966.9,2.52086011]
[1761078133915,0.1633,3967.0,3966.4,2.52112592]
[1761078133916,0.001,3967.2,3967.0,2.52079657]
[1761078134124,0.001,3967.2,3967.1,2.52073302]
[1761078134622,0.099,3967.1,3966.9,2.52082729]
[1761078134918,0.099,3967.1,3967.0,2.52079657]
[1761078135508,0.001,3967.2,3967.1,2.52073302]
[1761078136222,0.001,3967.2,3967.1,2.54594035]
[1761078137004,0.1,3967.2,3967.1,2.52073302]
[1761078137204,0.1,3967.2,3966.1,5.4933]
[1761078137491,0.001,3967.2,3967.1,2.52073302]
[1761078138198,0.001,3967.2,3967.1,22.35275807]
[1761078138399,0.001,3967.2,3967.1,24.32565074]
[1761078140230,0.001,3967.2,3967.1,4.30903302]
[1761078140525,0.1,3967.2,3967.1,2.52073302]
[1761078144636,0.001,3967.2,3967.1,2.52073302]
[1761078146452,0.1,3967.2,3967.1,2.52073302]
[1761078148151,0.1,3967.2,3967.0,2.5207904]
[1761078148352,3.7,3967.7,3967.0,2.52076488]
[1761078148539,3.7,3967.7,3967.1,2.52071334]
[1761078148740,3.7,3967.7,3967.2,2.52066814]
[1761078149052,3.7,3967.7,3966.8,0.002]
[1761078149053,3.7,3967.7,3967.0,2.52076605]
[1761078149353,3.7,3967.7,3967.3,2.52059193]
[1761078149555,3.7,3967.7,3967.2,2.52065005]
[1761078149949,3.7,3967.7,3967.3,2.52059531]
[1761078150253,3.7,3967.7,3967.2,2.52065675]
[1761078150418,0.1637,3967.6,3967.1,2.52072467]
[1761078150616,2.68416699,3967.6,3966.9,2.52084602]
[1761078150819,0.1637,3967.5,3966.8,0.002]
[1761078151048,0.1637,3967.5,3966.8,2.52290092]
[1761078151272,4.301435,3967.3,3966.8,0.002]
[1761078151463,0.50688,3967.4,3966.8,0.002]
[1761078151617,2.68431916,3967.3,3966.8,0.002]
[1761078151821,0.1637,3967.3,3966.8,0.002]
[1761078152032,0.1637,3967.2,3966.8,0.002]
[1761078153868,3.697,3967.1,3966.8,0.002]
[1761078154035,6.21775685,3967.1,3966.8,0.002]
[1761078154237,0.0653,3966.9,3966.8,0.002]
[1761078154631,0.1643,3966.9,3966.8,0.002]
[1761078154832,2.68516011,3966.9,3966.8,0.002]
[1761078155427,0.0653,3966.9,3966.8,0.002]
[1761078155626,0.0653,3967.2,3966.8,0.002]
[1761078155825,3.696,3967.0,3966.9,2.52080117]
[1761078156052,0.0653,3967.2,3967.0,2.52076002]
[1761078156270,3.696,3967.1,3966.9,2.52084935]
[1761078156453,3.795,3967.1,3966.8,0.002]
[1761078156657,3.696,3967.1,3966.9,2.52079771]
[1761078157469,3.696,3967.1,3966.8,0.002]
[1761078157633,0.099,3967.0,3966.8,0.002]
[1761078158357,2.52086011,3966.9,3966.8,0.002]
[1761078158859,2.61986011,3966.9,3966.8,0.002]